{"text_format":"3","workbook":"xlsx","n_sheets":5,"sheets":["VL","VL_SW-R","VL_SW-L","Pomoc","Translation"],"not_rendered":{"images":15,"defined_names":3},"read":"whole","date_system":"1900"}

{"sheet":"VL","index":0,"n_rows":62,"n_cols":50,"rows_kept":62,"merged":[[0,0,2,14],[0,49,0,54],[1,46,2,47],[2,16,2,19],[2,20,2,23],[2,29,2,33],[3,0,3,12],[4,16,4,19],[4,20,4,23],[6,16,7,19],[6,20,7,23],[8,5,9,6],[10,16,11,17],[10,23,11,24],[13,6,13,7],[13,8,13,9],[14,25,15,25],[16,0,17,0],[17,26,19,33],[18,7,21,7],[18,8,21,8],[18,12,21,12],[20,4,21,5],[21,26,23,33],[21,44,22,48],[26,26,26,33],[26,44,27,48],[27,16,28,16],[28,26,30,33],[30,8,33,8],[30,12,33,12],[30,13,33,13],[31,26,31,33],[31,44,33,48],[33,26,35,33],[36,24,38,25],[36,34,37,34],[38,39,38,42],[39,16,40,16],[39,22,40,22],[40,4,41,5],[40,13,41,14],[40,18,41,20],[40,24,41,26],[41,34,42,38],[41,39,42,45],[44,35,45,38],[44,39,45,45],[45,17,46,26],[47,0,47,14],[47,41,48,43],[48,0,49,14],[48,25,58,26],[48,45,48,46],[49,27,50,38],[49,41,49,43],[50,0,50,14],[51,16,52,23],[51,27,53,38],[51,41,51,42],[52,41,52,42],[53,0,53,14],[54,1,54,10],[54,11,54,12],[54,13,54,14],[54,27,55,38],[55,1,55,10],[55,11,55,12],[55,13,55,14],[55,16,56,23],[56,1,56,10],[56,11,56,12],[56,13,56,14],[56,27,58,38],[57,1,57,10],[57,11,57,12],[57,13,57,14],[58,1,58,10],[58,11,58,12],[58,13,58,14],[59,1,59,10],[59,11,59,12],[59,13,59,14],[59,16,60,24],[60,1,60,10],[60,11,60,12],[60,13,60,14],[60,27,61,38],[61,1,61,10],[61,11,61,14]]}
[{"$f":"Translation!C139","v":"Prowadzenie pionowe (VL)"},{"$nulls":48},"Zvol jazyk:"]
[{"$nulls":46},"PL",null,null,"Select a language:"]
[{"$nulls":16},{"$f":"Translation!C4","v":"Szerokość otworu"},{"$nulls":7},"mm",{"$nulls":4},{"$f":"Translation!C43","v":"Nachylenie podłogi"},{"$nulls":19},"Wählen Sie eine Sprache:"]
[{"$f":"Translation!C17","v":"Max. W x H 5000x5000"},{"$nulls":48},"Wybierz język:"]
[{"$nulls":16},{"$f":"Translation!C5","v":"Wysokość otworu"},{"$nulls":7},"mm",{"$nulls":24},"Sélectionner une langue:"]
[{"$nulls":49},"Selecteer een taal:"]
[{"$nulls":16},{"$f":"Translation!C115","v":"Pozycja sylnika"},{"$nulls":32},"Valige keel:"]
[{"$nulls":49},"Valitse kieli:"]
[{"$nulls":5},600,{"$nulls":43},"Выберите язык:"]
[{"$nulls":49},"Välj ett språk:"]
[{"$nulls":16},120,{"$nulls":6},450]
[]
[]
[]
[{"$nulls":25},160]
[]
[]
[{"$nulls":26},{"$f":"Translation!C38","v":"Powierzchnia montażowa dla silnika (L lub R)"}]
[{"$nulls":7},{"$f":"IF(U5=\"\",\"A\",\"A = \"&N58)","v":"A"},{"$f":"IF(U5=\"\",\"F\",\"F = \"&N57)","v":"F"},{"$nulls":3},{"$f":"IF(U5=\"\",\"F\",\"F = \"&N57)","v":"F"}]
[]
[]
[{"$nulls":26},{"$f":"Translation!C50","v":"Niezbędna przestrzeń boczna dla silnika (L lub R)"},{"$nulls":17},{"$f":"Translation!C21","v":"Montaż do muru i cegły"}]
[]
[]
[]
[]
[{"$nulls":26},{"$f":"Translation!C39","v":"Niezbędna wolna przestrzeń"},{"$nulls":17},{"$f":"Translation!C22","v":"Montaż do betonu porowatego"}]
[{"$nulls":16},80]
[{"$nulls":26},{"$f":"Translation!C51","v":"powierzchnia montażowa dla jednostki sterującej. Wymiary można znaleźć w dokumentacji produktu"}]
[]
[{"$nulls":8},{"$f":"IF(U5=\"\",\"H\",\"H = \"&U5)","v":"H"},{"$nulls":3},{"$f":"IF(U5=\"\",\"H\",\"H = \"&U5)","v":"H"},{"$f":"IF(U5=\"\",\"(S)\",\"(S = \"&(U5+U5+10)&\")\")","v":"(S)"}]
[{"$nulls":26},{"$f":"Translation!C52","v":"Dolna krawędź 1500mm z podłogi"},{"$nulls":17},{"$f":"Translation!C23","v":"Montaż do płaszcza"}]
[]
[{"$nulls":26},{"$f":"Translation!C33","v":"Gniazdo przemysłowe CEE 16A, 5P, 400V, zabezpieczone wyłącznikiem nadprądowym 16A o charakterystyce typu K, wyłącznik różnicowoprądowy typu F, I = 30 mA."}]
[]
[]
[{"$nulls":24},1000,{"$nulls":9},250]
[]
[{"$nulls":39},{"$f":"IF(U3=\"\",\"L+W+R\",\"L+W+R = \"&(200+U3+400))","v":"L+W+R"}]
[{"$nulls":16},100,{"$nulls":5},100]
[{"$nulls":4},250,{"$nulls":8},{"$f":"IF(U7=Translation!B117,\"L = 200\",IF(U7=Translation!B116,\"L = 400\",\"L\"))","v":"L = 200"},{"$nulls":4},{"$f":"IF(U3=\"\",\"W\",\"W = \"&U3)","v":"W"},{"$nulls":5},{"$f":"IF(U7=Translation!B117,\"R = 400\",IF(U7=Translation!B116,\"R = 200\",\"R\"))","v":"R = 400"}]
[{"$nulls":34},{"$f":"Translation!C140","v":"Oferta/Zamówienie:"}]
[]
[]
[{"$nulls":35},{"$f":"Translation!C141","v":"Pozycje:"}]
[{"$nulls":17},{"$f":"Translation!C6","v":"Widok od środka"}]
[]
[{"$f":"Translation!C9","v":"Uwaga:"},{"$nulls":40},{"$f":"Translation!C96","v":"Data aktualizacji"}]
[{"$f":"Translation!C57","v":"Powierzchnia, do której wykonywany jest montaż, musi być równa i stabilna,a wszystkie powierzchnie montażowe powinny znajdować się w jednej płaszczyźnie."},{"$nulls":24},"!",{"$nulls":19},{"$f":"Translation!C98","v":"Format:"}]
[{"$nulls":27},{"$f":"Translation!C26","v":"Prace, które muszą zostać wykonane przez klienta przed wykonaniem montażu, o ile nie uzgodniono inaczej."},{"$nulls":13},"2025-02-05",{"$nulls":3},"A3"]
[{"$f":"Translation!C58","v":"Otwór musi być pionowy i prostokątny."}]
[{"$nulls":16},{"$f":"Translation!C39","v":"Niezbędna wolna przestrzeń"},{"$nulls":10},{"$f":"Translation!C29","v":"Przygotowanie powierzchni montażowych dla prowadzenia bramy oraz dla sprężyn."},{"$nulls":13},{"$f":"Translation!C103","v":"Wersja:"}]
[{"$nulls":41},2506]
[{"$f":"Translation!C62","v":"Wymiary podane w mm"}]
["W ",{"$f":"Translation!C63","v":"Szerokość otworu"},{"$nulls":11},{"$f":"IF(U3=\"\",\"\",U3)","v":""},{"$nulls":13},{"$f":"Translation!C31","v":"Niezbędne powierzchnie montażowe oraz wolna przestrzeń wg rysunku."}]
["H ",{"$f":"Translation!C64","v":"Wysokość otworu"},{"$nulls":11},{"$f":"IF(U5=\"\",\"\",U5)","v":""},null,null,{"$f":"Translation!C37","v":"Niezbędna powierzchnia montażowa"}]
["F ",{"$f":"Translation!C67","v":"Wolna przestrzeń nad nadprożem"},{"$nulls":9},"H+300",null,{"$f":"U5+300","v":300},{"$nulls":13},{"$f":"Translation!C33","v":"Gniazdo przemysłowe CEE 16A, 5P, 400V, zabezpieczone wyłącznikiem nadprądowym 16A o charakterystyce typu K, wyłącznik różnicowoprądowy typu F, I = 30 mA."}]
["A ",{"$f":"Translation!C86","v":"Oś wału nad nadprożem"},{"$nulls":9},"H+10",null,{"$f":"U5+10","v":10}]
["L ",{"$f":"Translation!C69","v":"Wolna przestrzeń w lewo"},{"$nulls":11},{"$f":"IF(U7=Translation!B117,\"200\",IF(U7=Translation!B116,\"400\",\"0\"))","v":"200"}]
["R",{"$f":"Translation!C70","v":"Wolna przestrzeń w prawo"},{"$nulls":11},{"$f":"IF(U7=Translation!B117,\"400\",IF(U7=Translation!B116,\"200\",\"0\"))","v":"400"},null,null,{"$f":"Translation!C38","v":"Powierzchnia montażowa dla silnika (L lub R)"}]
["S",{"$f":"Translation!C135","v":"Oś wału na podłodze"},{"$nulls":9},"(H+A)",null,{"$f":"IF(U5=\"\",\"\",U5+N58)","v":""}]
["L/R",{"$f":"Translation!C115","v":"Pozycja sylnika"},{"$nulls":9},"min. 400"]

{"sheet":"VL_SW-R","index":1,"n_rows":49,"n_cols":16,"rows_kept":49,"merged":[[0,5,1,6],[0,13,1,14],[4,15,5,15],[6,3,12,3],[9,47,11,47],[17,7,18,7],[19,3,25,3],[29,8,29,10],[30,12,30,13],[32,8,33,9],[34,5,34,7],[39,6,41,19],[42,6,43,10],[42,11,43,15],[42,16,49,19],[44,6,45,10],[44,11,45,15],[46,6,47,10],[46,11,47,15],[48,6,49,10],[48,11,49,15]]}
[{"$nulls":5},{"$f":"VL!Q11","v":120},{"$nulls":7},{"$f":"VL!X11","v":450}]
[]
[]
[]
[{"$nulls":15},{"$f":"VL!AE18","v":0}]
[]
[{"$nulls":3},{"$f":"VL!H19","v":"A"}]
{"$rows_empty":10}
[{"$nulls":7},{"$f":"VL!Q28","v":80}]
[]
[{"$nulls":3},{"$f":"VL!M31","v":"H"}]
[]
[]
[{"$nulls":12},"A",null,"A"]
[]
[]
[]
[]
[]
[]
[{"$nulls":8},{"$f":"VL!S41","v":"W"}]
[{"$nulls":6},{"$f":"VL!Q40","v":100},{"$nulls":5},{"$f":"VL!W40","v":100}]
[]
[{"$nulls":8},"A - A"]
[]
[{"$nulls":5},"min. 4mm"]
[]
[]
[]
[]
[{"$nulls":6},{"$f":"Translation!C139","v":"Prowadzenie pionowe (VL)"}]
[]
[]
[{"$nulls":6},{"$f":"Translation!C115","v":"Pozycja sylnika"},{"$nulls":4},{"$f":"Translation!C117","v":"Po prawej strony"}]
[]
[{"$nulls":6},{"$f":"Translation!C89","v":"Wykonał:"}]
[]
[{"$nulls":6},{"$f":"Translation!C91","v":"Skorygował:"}]
[]
[{"$nulls":6},{"$f":"Translation!C96","v":"Data aktualizacji"}]

{"sheet":"VL_SW-L","index":2,"n_rows":49,"n_cols":15,"rows_kept":49,"merged":[[0,4,1,6],[0,12,1,13],[4,3,5,3],[7,14,13,15],[17,11,18,11],[20,14,26,15],[29,9,29,11],[30,6,30,7],[30,13,30,14],[32,8,33,9],[34,5,34,7],[39,6,41,19],[42,6,43,10],[42,11,43,15],[42,16,49,19],[44,6,45,10],[44,11,45,15],[46,6,47,10],[46,11,47,15],[48,6,49,10],[48,11,49,15]]}
[{"$nulls":4},{"$f":"VL!X11","v":450},{"$nulls":7},{"$f":"VL!Q11","v":120}]
[]
[]
[]
[{"$nulls":3},{"$f":"VL!Z15","v":160}]
[]
[]
[{"$nulls":14},{"$f":"VL!H19","v":"A"}]
{"$rows_empty":9}
[{"$nulls":11},{"$f":"VL!Q28","v":80}]
[]
[]
[{"$nulls":14},{"$f":"VL!M31","v":"H"}]
[]
[{"$nulls":4},"A",null,null,"A"]
[]
[]
[]
[]
[]
[]
[{"$nulls":9},{"$f":" VL!S41","v":"W"}]
[{"$nulls":6},{"$f":"VL!Q40","v":100},{"$nulls":6},{"$f":"VL!W40","v":100}]
[]
[{"$nulls":8},"A - A"]
[]
[{"$nulls":5},"min. 4mm"]
[]
[]
[]
[]
[{"$nulls":6},{"$f":"Translation!C139","v":"Prowadzenie pionowe (VL)"}]
[]
[]
[{"$nulls":6},{"$f":"Translation!C115","v":"Pozycja sylnika"},{"$nulls":4},{"$f":"Translation!C116","v":"Po lewej stronie"}]
[]
[{"$nulls":6},{"$f":"Translation!C89","v":"Wykonał:"}]
[]
[{"$nulls":6},{"$f":"Translation!C91","v":"Skorygował:"}]
[]
[{"$nulls":6},{"$f":"Translation!C96","v":"Data aktualizacji"}]

{"sheet":"Pomoc","index":3,"n_rows":13,"n_cols":3,"rows_kept":13,"hidden":true}
[]
[null,"č.jaz.",9]
[null,"Jazyk","číslo"]
[null,"CZ",1]
[null,"EN",2]
[null,"DE",3]
[null,"PL",4]
[null,"FR",5]
[null,"NL",6]
[null,"EST",7]
[null,"FIN",8]
[null,"RU",9]
[null,"SV",10]

{"sheet":"Translation","index":4,"n_rows":1065,"n_cols":14,"rows_kept":1065,"hidden":true}
[null,null,"VL"," ","CZ","EN","DE","PL","FR","NL","EST","FIN","RU","SV"]
[null,null,{"$f":"HLOOKUP(VL!AU2,Translation!$E$1:$U$2,2,FALSE)","v":4}," ",1,2,3,4,5,6,7,8,9,10]
[{"$nulls":3}," "]
[null,null,{"$f":"IF(E4=\"\",\"\",VLOOKUP(E4,E4:U4,$C$2,FALSE))","v":"Szerokość otworu"}," ","Šířka otvoru","Opening width","lichte Breite","Szerokość otworu","Largeur de baie","Dagmaat breedte","Ava laius","Oviaukon leveys","Ширина проема"]
[null,null,{"$f":"IF(E5=\"\",\"\",VLOOKUP(E5,E5:U5,$C$2,FALSE))","v":"Wysokość otworu"}," ","Výška otvoru","Opening height","lichte Höhe","Wysokość otworu","Hauteur de baie","Dagmaat hoogte","Ava kõrgus","Oviaukon korkeus","Высота проема"]
[null,null,"Widok od środka"," ","Pohled zevnitř","Interior view","Innenansicht","Widok od środka","Vue interieure","Binnenaanzicht","Seestvaade","Sisältäpäin kuvattuna","Вид изнутри"]
[null,null,"Przekrój a-a"," ","Řez a-a","Section a-a","Durchschnitt a-a","Przekrój a-a","Coupe a-a","Doorsnede a-a","Vaade a-a","Leikkaus a-a","Разрез а-а"]
[null,null,"Przekrój b-b"," ","Řez b-b","Section b-b","Durchschnitt b-b","Przekrój b-b","Coupe b-b","Doorsnede b-b","Vaade b-b","Leikkaus b-b","Разрез b-b"]
[null,null,"Uwaga:"," ","Poznámka:","Note:","Achtung:","Uwaga:","Remarque:","Opmerking:","Märkus","Huomautus:","Примечания:"]
[null,null,""," "]
[null,null,""," "]
[null,null,""," "]
[null,null,"Prowadzenie standardowe (SL)"," ","Standardní vedení (SL)","Standard lift system (SL)","Standardbeschlag (SL)","Prowadzenie standardowe (SL)","Levee standard (SL)","Standaard beslagsysteem (SL)","Standardtõste (SL)","Vakionosto (SL)","Стандартный подъем (SL)"]
[null,null,"Sprężyny nad nadprożem"," ","Pružiny nad překladem","Springs above lintel","Federn oberhalb des sturzes","Sprężyny nad nadprożem","Ressorts avants deportes du linteau","Veren boven latei","Vedrud ava kohal","Jouset ovipalkkin päällä","Нижнее расположение вала"]
[null,null,"Pro hl>600 i hl<=1200"," ","Pro HL>600 a hl<=1200","Pro hl>600 and hl<=1200","Pro hl>600 und hl<=1200","Pro hl>600 i hl<=1200","Pro hl>600 et hl<=1200","Voor HL> 600 en hl <= 1200","Hl>600 ja hl<=1200","Pro hl>600 ja hl<=1200","При высоте подъема > 600 и <= 1200"]
[null,null,"Panel 40 mm"," ","Panel 40mm","Section thickness 40 mm","Paneel 40 mm","Panel 40 mm","40 mm panneau","Paneel 40 mm","Paneel 40 mm","Lamelli 40mm","Толщина секции 40мм "]
[null,null,"Max. W x H 5000x5000"," ","Max. W x H 5000x5000","Max. W x H 5000x5000","max. W x H 5000x5000","Max. W x H 5000x5000","Max. W x H 5000x5000","Max. W x H 5000x5000","Max. W x H 5000x5000","Max. W x H 5000x5000","Макс. Шхв (WxH) 5000x5000"]
[null,null,""," "]
[null,null,""," "]
[null,null,""," "]
[null,null,"Montaż do muru i cegły"," ","Montáž na cihlové zdivo","Mounting on brickwork","Montage auf Mauerwerk und Ziegel","Montaż do muru i cegły","Montage sur béton","Montage op beton","Paigaldus kiviseinale","Asennus tiiliseinän","Монтаж на бетон"]
[null,null,"Montaż do betonu porowatego"," ","Montáž na porobeton","Mounting on cellular concrete","Montage auf Porenbeton oder Gasbeton","Montaż do betonu porowatego","Montage sur parpaing creux","Montage op gasbeton","Paigaldus poorbetoonile","Asennus betoniin","Монтаж на газобетон"]
[null,null,"Montaż do płaszcza"," ","Montáž na opláštění","Mounting on insulated cladding","Montage auf Iso-trapezblechfassade","Montaż do płaszcza","Montage sur structure métallique  (a fournir par le charpentier)","Montage op binnendooscontructie met damwandbeplating","Paigaldus soojustatud seinapaneelile","Asennus eristettyyn seinäelementtiin","Монтаж на металлокаркас"]
[null,null,""," "]
[null,null,""," "]
[null,null,"Prace, które muszą zostać wykonane przez klienta przed wykonaniem montażu, o ile nie uzgodniono inaczej."," ","Práce, které musí být provedeny zákazníkem před montáží, pokud nebylo dohodnuto jinak.","Work to be carried out by customer, unless in advance otherwise is agreed in writing.","Vorbereitungen und Arbeiten die vom Auftraggeber zu erbringen sind, außer bei schriftlicher Vereinbarung im Voraus.","Prace, które muszą zostać wykonane przez klienta przed wykonaniem montażu, o ile nie uzgodniono inaczej.","Approvisionnement & travaux incombant au maitre d'ouvrage  (sauf accord contraire).","Voorzieningen en werkzaamheden door opdrachtgever te verzorgen, tenzij vooraf schriftelijk anders is overeengekomen.","Kliendi poolt tehtavad ettevalmistustööd v.a juhul kui pole kirjalikult teistmoodi kokku lepitud.","Asiakkaan tehtävät työt, ellei etukäteen kirjallisesti muutoin sovittu.","Материалы и проведение работ обеспечиваются клиентом,если иное не оговорено заранее в письменной форме."]
[null,null,"Konstrukcyjne:"," ","Konstrukční:","Constructional :","Bauseits:","Konstrukcyjne:","Structure: ","Bouwkundig:","Ehituslikud:","rakenteellinen:","Конструктивно:"]
[null,null,""," "]
[null,null,"Przygotowanie powierzchni montażowych dla prowadzenia bramy oraz dla sprężyn."," ","Příprava montážních ploch pro vedení vrat a pro pružiny.","Supply and fix mounting frame and mounting surfaces for the rails and the spring packet in case of aerated concrete or sandwichpanels etc.","Ein stählerner Montagerahmen zur Befestigung der vertikalen Laufschienen und des Federpakets bei nicht tragfähigen Flächen wie z.b. Porenbeton, Gasbeton, Isolationspanelen u.s.w..","Przygotowanie powierzchni montażowych dla prowadzenia bramy oraz dla sprężyn.","Préparation de la structure de montage des rails de guidage et des ressorts pour une pose sur panneaux isolants","Een stalen montageframe voor de bevestiging van de verticale looprails en het verenpakket bij niet dragende montagevlakken, zoals gasbeton, isolatiepanelen, sandwichpanelen enz.","Avaettevalmistusraami tarnimine ja paigaldus siinide ja vedrude kinnituseks","Toimittaa ja asentaa asennuskehyksen ja asennuspinnat kiskoille ja jousipaketille tapauksessa jossa kevytbetooni tai sandwich-paneeli jne.","Стальная монтажная рама для установки вертикальных направляющих и пружин в случае не несущих монтажных поверхностей, таких как: газобетон, изоляционные панели, сэндвич-панели и т.д."]
[null,null,"Montaż prowadzenia poziomego można wykonać w oddaleniu maks. 1 metra od konstrukcji stałej."," ","Montáž vodorovného vedení může být max. 1 metr od pevné konstrukce.","Mounting possibilities for the horizontal rails up to 1 meter above the rails must be provided.","Befestigungsmöglichkeit für die zwischen- und endaufhängung der horizontalen laufschienen bis zu max. 1 m über diesen laufschienen.","Montaż prowadzenia poziomego można wykonać w oddaleniu maks. 1 metra od konstrukcji stałej.","Lorsque les possibilités de montage des rails horizontaux dépassent ","Benodigde montagevlakken en vrije ruimtes, volgens tekening.","Paigaldusruum ülalpool siini max. 1m","Asennus mahdollisuudet vaakakiskoille enintään 1 metrin korkeudella kiskoista pitää olla mahdollista.","Способы крепления для горизонтальных направляющих максимум до 1м над данными направляющими."]
[null,null,"Niezbędne powierzchnie montażowe oraz wolna przestrzeń wg rysunku."," ","Nezbytné montážní plochy a volný prostor dle nákresu.","Necessary mounting surface and free room as shown.","Benötigte Montageflächen und Freiräume gemäß Zeichnung.","Niezbędne powierzchnie montażowe oraz wolna przestrzeń wg rysunku.","Adapter la structure et l' espace disponible selon nos plans de réservations ci-contre","Benodigde montagevlakken en vrije ruimte volgens tekening.","Piisav paigaldusruum vastavalt lisatud joonisele","Tarvittava kiinnityspinta ja vapaa tilaa kuvan mukaisesti.","Необходимые монтажные поверхности и свободное пространство в соответствии с чертежом"]
[null,null,"Przygotowanie elektryczne (dla elektrycznie sterowanej bramy segmentowej) :"," ","Elekrická příprava (pro elektricky ovládaná sekční vrata): ","Electrical supply required to be :","Elektrisch (bei elektrisch bedienten Toren):","Przygotowanie elektryczne (dla elektrycznie sterowanej bramy segmentowej) :","Alimentation electrique  (pour porte motorisée) :","Elektrisch: (bij elektrisch bediende deuren)","Elektriliselt avatavate uste jaoks","Sähkönsyöttö tarvittu:","Электрика (для ворот с электрическим управлением):"]
[null,null,"Gniazdo przemysłowe CEE 16A, 5P, 400V, zabezpieczone wyłącznikiem nadprądowym 16A o charakterystyce typu K, wyłącznik różnicowoprądowy typu F, I = 30 mA."," ","Průmyslová zásuvka CEE 16A, 5P, 400V, jištěno 16A jističem s charakteristikou typu K, proudový chránič typu F, I=30 mA  ","Industrial socket CEE 16A, 5P, 400V, protected by a 16A circuit breaker with K-type characteristics, residual current device type F, I = 30 mA.","Industriesteckdose CEE 16A, 5P, 400V, abgesichert mit einem 16A-Leitungsschutzschalter mit K-Charakteristik, FI-Schutzschalter Typ F, I = 30 mA.","Gniazdo przemysłowe CEE 16A, 5P, 400V, zabezpieczone wyłącznikiem nadprądowym 16A o charakterystyce typu K, wyłącznik różnicowoprądowy typu F, I = 30 mA.","Prise industrielle CEE 16A, 5P, 400V, protégée par un disjoncteur 16A avec caractéristique de type K, dispositif différentiel type F, I = 30 mA."," Industriële stekker CEE 16A, 5P, 400V, beveiligd met een 16A zekering met K-type karakteristieken, aardlekschakelaar type F, I = 30 mA."," Tööstuslik pistikupesa CEE 16A, 5P, 400V, kaitstud 16A K-tüüpi kaitselülitiga, lekkekaitselüliti tüüp F, I = 30 mA.","Teollisuuspistorasia CEE 16A, 5P, 400V, suojattu 16A K-tyypin katkaisijalla, vikavirtasuoja tyyppi F, I = 30 mA.","Промышленная розетка CEE 16A, 5P, 400В, защищена автоматическим выключателем на 16А с характеристикой типа K, УЗО типа F, I = 30 мА.","Industriuttag CEE 16A, 5P, 400V, skyddad av en 16A-säkring med K-typ egenskaper, jordfelsbrytare typ F, I = 30 mA."]
[null,null,"Zapewnić odpowiednią powierzchnię montażową dla jednostki sterującej silnika 250x400"," ","Zajistit vhodnou montážní plochu pro řídící jednotku motoru 250 x 400 mm","Provide suitable mounting surface for control panel, dimensions 250 x 400 mm","Montagefläche für schaltkasten, abmessungen 250 x 400 mm","Zapewnić odpowiednią powierzchnię montażową dla jednostki sterującej silnika 250x400","Assurer une surface de montage adéquate pour le coffret de commande du moteur l.250 x h.400 mm","Montagevlak t.b.v. Schakelkast, afmetingen 250 x 400 mm","Kontrolleri jaoks piisava paigaldusruumi tagamine 250x400 mm","Tarjoa sopivan kiinnityspinnan  ohjauspaneelia varten ,mitat 250 x 400 mm","Необходимо обеспечить монтажную поверхность для панели управления, размеры 250х400 мм"]
[null,null,""," "]
[null,null,""," "]
[null,null,"Niezbędna powierzchnia montażowa"," ","Nezbytná montážní plocha","Necessary mounting surface","benötigter Montageflächen","Niezbędna powierzchnia montażowa","Surface necessaire de montage","Benodigde montagevlakken","Vajalik paigaldusruum","Tarvittava kiinnityspinta","Необходимая монтажная поверхность"]
[null,null,"Powierzchnia montażowa dla silnika (L lub R)"," ","Montážní plocha pro motor (L nebo R)","Mounting surface for motor (L or R)","Montagefläche für den Motor (wahlweise L oder R)","Powierzchnia montażowa dla silnika (L lub R)","Surface de l'emplacement pour  (L ou R)","Benodigde vrije ruimte (L of R)","Vajalik ruum mootori paigalduseks  (L või R)","Kiinnityspinta mootorille (L tai R)","Монтажная поверхность для мотора (L и R)"]
[null,null,"Niezbędna wolna przestrzeń"," ","Nezbytný volný prostor","Necessary free room","benötigter Freiraum","Niezbędna wolna przestrzeń","Espace libre neccessarie","Extra vrije ruimte bij motor/ketting","Vajalik vaba ruum ","Tarvittava vapaa tila","Необходимое свободное пространство"]
[null,null,""," "]
[null,null,""," "]
[null,null,""," "]
[null,null,"Nachylenie podłogi"," ","Sklon podlahy","Fall of the floor","Bodenneigung","Nachylenie podłogi","Réservations seuil béton","Vloer met waterkering","Pinna langus","Kaltevuus","Пол с водоотводом"]
[null,null,"W kierunku na zewnątrz"," ","Směrem ven","Outside","Nach aussen","W kierunku na zewnątrz",null,"Buitenzijde","Väljaspool","Ulkopuoli","наружу"]
[null,null,"Nachylenie 3%"," ","Sklon 3%","Fall 3%","Gefälle 3%","Nachylenie 3%","Pente 3%","Afschot 3%","Langus 3%","Kaltevuus 3%","Наклон 3%"]
[null,null,"W kierunku na zewnątrz"," ","Směrem ven","Internal level","Wasserschenkel","W kierunku na zewnątrz","Réservations seuil béton","Niveau binnen","Sisemine tasand","Sisäinen taso","наружу"]
[null,null,"Nachylenie podłogi"," ","Sklon podlahy","Floor with raised","Boden mit","Nachylenie podłogi",null,"Vloer met  ","Põrand koos tõstetud sisetasandiga","Lattia nostetulla","Пол с наклоном 3%"]
[null,null,""," "]
[null,null,""," "]
[null,null,"Niezbędna przestrzeń boczna dla silnika (L lub R)"," ","Nezbytný boční prostor pro motor (L nebo R)","Necessary side room for electrical- operation (L or R)","benötigter Freiraum bei Elektro-Bedienung (wahlweise L oder R)","Niezbędna przestrzeń boczna dla silnika (L lub R)","Écoinçon minimum requis pour le moteur (L ou R)","Benodigde vrije ruimte voor elektrische-bediening (L of R)","Vajalik küljeruum mootori (L või R)","Tarvittava tila mootori- tai ketjunostolle (L tai R)","Необходимое боковое пространство для электропривода или цепного редуктора (L и R)"]
[null,null,"powierzchnia montażowa dla jednostki sterującej. Wymiary można znaleźć w dokumentacji produktu"," ","montážní plocha pro řídící jednotku. Rozměry najdete v dokumentaci ŘJ.","mounting surface for control panel. See product documentation for dimensions","Montagefläche für Antriebsteuerung. Siehe Produktdokumentation für Abmessungen","powierzchnia montażowa dla jednostki sterującej. Wymiary można znaleźć w dokumentacji produktu","surface de montage pour le Coffret de commande. Voir la documentation du produit pour les dimensions","montagevlak t.b.v. Zie productdocumentatie voor afmetingen","Kontrolli paigaldusala. Vaata toote dokumentatsiooni mõõtmete kohta","kiinnityspinta ohjauspaneelia varten. Katso mitat tuoteasiakirjoista","монтажная поверхность для блока управления. Размеры см. в документации на изделие"]
[null,null,"Dolna krawędź 1500mm z podłogi"," ","Spodní hrana 1500mm od podlahy","Bottom edge 1500mm from floor","Unterkante 1500mm vom Boden","Dolna krawędź 1500mm z podłogi","Bord inférieur 1500mm du sol","Onderkant 1500mm vanaf de vloer","Alumine serv 1500mm põrandast","Alareuna 1500mm lattiasta","Нижний край 1500mm от пола","Bottenkant 1500mm från golvet"]
[null,null,""," "]
[null,null,""," "]
[null,null,""," "]
[null,null,""," "]
[null,null,"Powierzchnia, do której wykonywany jest montaż, musi być równa i stabilna,a wszystkie powierzchnie montażowe powinny znajdować się w jednej płaszczyźnie."," ","Plocha, na kterou se montuje, musí být rovná a pevná a všechny montážní plochy musí být v jedné rovině. ","Mounting surface must be flat and massive and all mounting surfaces must be in one level.","Fläche, an die montiert wird, muss gerade und fest sein und alle Montageflächen müssen in einer Ebene sein.","Powierzchnia, do której wykonywany jest montaż, musi być równa i stabilna,a wszystkie powierzchnie montażowe powinny znajdować się w jednej płaszczyźnie.","La surface d'appui pour la pose de la porte sectionnelle doit etre dans le meme plan et verticale.","De achterkanten van de penanten, de latei en de montagevlakken van het verenpakket dienen vlak en in één lijn te liggen.","Paigalduspind peab olema sirge, loodis ja mittepudenev ning kõik paigalduspinnad peavad olema ühes tasapinnas","Asennuspintojen pitää olla tasaisia, kiinteitä ja samassa linjassa.","Монтажная поверхность должна быть ровной и располагаться в одной вертикальной плоскости."]
[null,null,"Otwór musi być pionowy i prostokątny."," ","Otvor musí být svislý a obdélníkový.","Furthermore the opening must be plumb and square.","Im Übrigen müssen die lichten Masse eben und rechtwinklig sein.","Otwór musi być pionowy i prostokątny.","L'ouverture de la baie doit etre parfaitement de niveau et d'equerre.","Tevens moet de dagmaat vlak en haaks zijn.","Ava peab olema täpne ja nelinurkne","Lisäksi oviaukon pitää olla pysty- ja vaakasuora sekä nelikulmainen.","Проем также должен быть ровным и прямоугольным."]
[null,null,"Podłoga musi być równa i pozioma."," ","Podlaha musí být rovná a vodorovná.","Floor area must be flat and horizontal.","Der fussboden muss glatt und waagerecht sein.","Podłoga musi być równa i pozioma.","Le sol doit etre parfaitement horizontal et plan.","De afgewerkte vloer dient vlak en waterpas te liggen.","Põrandapind peab olema sile ja horisontaalne","Lattian pitää olla tasainen ja vaakasuora.","Обработанный пол должен быть ровным и без склонов."]
[null,null,""," "]
[null,null,""," "]
[null,null,"Wymiary podane w mm"," ","Rozměry jsou v mm","Units in mm","Masse in mm","Wymiary podane w mm","Mesures en mm","Maten in mm","Mõõdud mm","Yksikkö mm","Размеры в мм:"]
[null,null,"Szerokość otworu"," ","Šířka otvoru","Opening width","lichte Breite","Szerokość otworu","Largeur de baie","Dagmaat breedte","Ava laius","Oviaukon leveys","Ширина проема"]
[null,null,"Wysokość otworu"," ","Výška otvoru","Opening height","lichte Höhe","Wysokość otworu","Hauteur de baie","Dagmaat hoogte","Ava kõrgus","Oviaukon korkeus","Высота проема"]
[null,null,"Wyciąg wysoki"," ","Zvýšené vedení","High lift","Höhe der Führung","Wyciąg wysoki","Leeve haute","High lift","Kõrge tõste","Korkeanosto","Высокий подъем"]
[null,null,"Wysokość stropu"," ","Výška stropu","Interior height","Höhe innenraum","Wysokość stropu","Hauteur sous plafond","Hoogte binnenruimte","Sisemine kõrgus","Sisäkorkeus","Высота внутри помещения до перекрытий"]
[null,null,"Wolna przestrzeń nad nadprożem"," ","Volný prostor nad překladem","Free room above lintel","Freiraum über Sturz","Wolna przestrzeń nad nadprożem","Retombee de linteau disponible","Vrije ruimte boven latei","Vaba ruum laeni","Vapaa ylätila","Свободное пространство над проемом"]
[null,null,"Wysokość powyżej otworu montażowego powierzchni"," ","Výška montážní plochy nad otvorem","Height of frame above opening","Höhe über montagefläche loch","Wysokość powyżej otworu montażowego powierzchni","Hauteur au-dessus du trou de surface de montage","Hoogte frame boven latei","Raami kõrgus ava kohal","Rungon korkeus oviaukon yläpuolella.","Высота конструкции ворот над проемом"]
[null,null,{"$f":"IF(E69=\"\",\"\",VLOOKUP(E69,E69:U69,$C$2,FALSE))","v":"Wolna przestrzeń w lewo"}," ","Volný prostor vlevo","Free side room left","Freiraum links","Wolna przestrzeń w lewo","Ecoincon gauche","Vrije zijruimte links","Vaba küljeruum vasakul","Vapaa tila vasemalla","Свободное боковое пространство слева"]
[null,null,"Wolna przestrzeń w prawo"," ","Volný prostor vpravo","Free side room right","Freiraum rechts","Wolna przestrzeń w prawo","Ecoincon droite","Vrije zijruimte rechts","Vaba küljeruum paremal","Vapaa tila oikealla","Свободное боковое пространство справа"]
[null,null,"Głębokość prowadzenia poziomego"," ","Hloubka vedení","Back room length of horizontal track","Einbautiefe","Głębokość prowadzenia poziomego","Refoulement hors-tout","Inbouwdiepte","Sügavus","Tila takana","Монтажная глубина"]
[null,null,"Punkt mocowania nr 1"," ","Kotvící bod č. 1","1st hanging point","1. Aufhängepunkt","Punkt mocowania nr 1","Point d'ancrage 1 suspente","1e ophangpunt","1.kinnituskoht","1. Ripustuspiste","1 точка крепления горизонтальных направляющих"]
[null,null,"Punkt mocowania nr 2"," ","Kotvící bod č. 2","2nd hanging point","2. Aufhängepunkt","Punkt mocowania nr 2","Point d'ancrage 2 suspente","2e ophangpunt","2.kinnituskoht","2. Ripustuspiste","2 точка крепления горизонтальных направляющих"]
[null,null,"Punkt mocowania nr 3"," ","Kotvící bod č. 3","3rd hanging point","3. Aufhängepunkt","Punkt mocowania nr 3","Point d'ancrage 3 suspente","3e ophangpunt","3. Kinnituskohta","3. Ripustuspiste","3 точка крепления горизонтальных направляющих"]
[null,null,"Punkt mocowania nr 4"," ","Kotvící bod č. 4","4th hanging point","4. Aufhängepunkt","Punkt mocowania nr 4","Point d'ancrage 4 suspente","4e ophangpunt","4. Kinnituskohta","4. Ripustuspiste","4 точка крепления горизонтальных направляющих"]
[null,null,"Wolny przestrzeń nad nadproźem"," ","Volný prostor nad překladem","Free room above mounting surface","Freiplatz auf der mountageplatz","Wolny przestrzeń nad nadproźem","Espace au-dessus de la surface de montage","Ruimte boven montagevlak","Vaba ruum ülalpool paigalduspinda","Vapaa tila asennuspisten kohdalla","Технологический зазор"]
[null,null,"Sterowanie ręczne"," ","Ruční ovládání","Manually operated","Handbedienung","Sterowanie ręczne","Porte manuelle","Handbediend","Käsitsi avatav","Käsikäyttöinen","Ручное управление"]
[null,null,"Obie strony"," ","Obě strany","Both sided","Beide seiten","Obie strony","Les 2 cotes","Beide zijden","Mõlemal pool","kaksipuoleinen","Обе стороны"]
[null,null,""," "]
[null,null,"Sterowanie elektr. Lub za pom. Przekł. Łańc."," ","Ovládání elektricky nebo řetězovým převodem","Electrical or hauling chain operated","Elektrisch- oder haspelkettenbedient","Sterowanie elektr. Lub za pom. Przekł. Łańc.","Porte motorisee ou avec treuil a chaine","Elektrisch- of handketting bediend","Elektriliselt või taliga avatav","Sähkö- tai ketjukäytöinen","Электрическое управление или с помощью цепи"]
[null,null,"Silnik lub przekł. Łańc."," ","Motor nebo řetěz. Př.","Motor or chain side","Motor-oder kettenseite","Silnik lub przekł. Łańc.","Ecoincon libre a cote de moteur","Motor- of kettingzijde","Mootori või tali pool","Mootorin tai ketjun puolinen","Сторона цепи или мотора"]
[null,null,"Głębokość prowadzenia"," ","Hloubka vedení","Back room","Einbautiefe","Głębokość prowadzenia","Refoulement hors-tout","Inbouwdiepte","Sügavus","Tila takana","Монтажная глубина"]
[null,null,"Punkty mocowania, jeżeli D≥4500"," ","Kotvící bod, když je D≥4500","Hanging point if D≥4500","Aufhängepunkte, wenn D≥4500","Punkty mocowania, jeżeli D≥4500","Point d'ancrage des suspentes, si D≥4500","Ophangpunt, als D≥4500","Kinnituskoht, kui D≥4500","Ripustuspiste jos D≥4500","Точки крепления горизонтальных направляющих, если D≥4500"]
[null,null,"Punkty mocowania"," ","Kotvící bod","Hanging point","Aufhängepunkte","Punkty mocowania","Point d'ancrage des suspentes","Ophangpunt","Kinntuskoht","Ripustuspiste","Точка крепления","центральная ось вала"]
[null,null,"Wolna przestrzeń nad nadprożem (min.)"," ","Volný prostor nad překladem","Free room above lintel","Freiraum über sturz","Wolna przestrzeń nad nadprożem (min.)","Retombee de linteau disponible","Vrije ruimte boven latei","Vaba ruum sillusest  laeni","Tila oviaukon päällä","Свободное пространство над проемом"]
[null,null,"Oś wału nad nadprożem"," ","Osa hřídele nad překladem","Height of shaft above lintel","Mitte Achse zum Sturz","Oś wału nad nadprożem","Positionnement axe de l'arbre de linteau","Center as boven latei","Kesktelg","Akseli ovipalkkin päällä","центральная ось вала"]
[null,null,""," "]
[null,null,""," "]
[null,null,"Wykonał:"," ","Sestavil:","Designed by:","aufgestellt:","Wykonał:","Dessine par:","Getekend door:","Joonestatud:","suunnitellut:","Спроектировано:"]
[null,null,""," "]
[null,null,"Skorygował:"," ","Upravil:","Checked by","bereinigt:","Skorygował:","Modifie par:","Gecontroleerd door:","Kontrollitud:","Tarkistanut","Проверил:"]
[null,null,"Skorygowano dnia:"," ","Schváleno - datum:","Approved by - date:","Bereinigt am:","Skorygowano dnia:","Modifie le (date):","Goedgekeurd datum:","Kinnitatud:","hyväksytty - päivämäärä:","Одобрил-дата:"]
[null,null,""," "]
[null,null,"Nazwa pliku:"," ","Název souboru:","File name:","Dateiname:","Nazwa pliku:","Titre:","Bestandsnaam","Faili nimi:","tiedoston nimi:","Навание файла:"]
[null,null,""," "]
[null,null,"Data aktualizacji"," ","Datum revize:","Revision date","Änderungsdatum","Data aktualizacji","Date de révision","Datum van herziening","Läbivaatamise kuupäev","Tarkistuspäivä","Дата проверки"]
[null,null,"Podział.:"," ","Měřítko","Scale:","Massst.:","Podział.:","Echelle:","Schaal:","Mõõtkava:","Mittakaava:","Шкала:"]
[null,null,"Format:"," ","Formát: ","Sheet:","Format:","Format:","Format:","Sheet:","Formaat:","Lista:","Лист:"]
[null,null,"Przygotowanie konstrukcyjne  "," ","Stavební připravenost    ","Installation drawing  ","Baubereitschaft  ","Przygotowanie konstrukcyjne  ","Plan de reservations & encombrements   ","Inbouwtekening voorge  ","Paigaldusjoonis","Asennuspiirustus ","Монтажный чертеж"]
[null,null,"Sprężyny nad nadprożem "," ","Pružiny nad překladem ","Springs above lintel "," federn oberhalb des sturzes ","Sprężyny nad nadprożem ","Ressorts avants deportes du linteau","Verenpakket boven latei","Vedrud ava kohal","Jouset ovipalkkin päällä","Нижнее расположение вала"]
[null,null,"Prowadzenie pionowe (vl-t)"," ","Vertikální systém","Vertical lift systém","Vertikaler beschlag (vl-t)","Prowadzenie pionowe (vl-t)","Levee verticale (vl)","Verticaal plafondsysteem","Vertikaalne tõstesüsteem","Pystysuora nostojärjestelmä","Вертикальная подъемная система"]
[null,null,"Kod:"," ","Kód:","Code:","Kode:","Kod:","Code:","Nr.:","Kood:","Koodi:","Код:"]
[null,null,"Wersja:"," ","Verze:","Version:","Version:","Wersja:","Version:","Versie:","Versioon:","Versio:","Версия:"]
[null,null,"Nie jest wymagane"," ","Není požadováno","Not required","Nicht erfordelich","Nie jest wymagane","Pas nécessaire","Niet benodigd","Mitte vajalik","Ei vaadittu","Не требуется"]
[null,null,""," "]
[null,null,"Prosimy o wypełnienie pól oznaczonych kolorem!"," ","Prosím, vyplňte pole, která jsou označena barevně!","Please, fill in the fields that are marked in color!","Fülen sie bitte markierte felder!","Prosimy o wypełnienie pól oznaczonych kolorem!","S'il vous plaît remplissez les champs qui sont marqués en couleur!","Vul a.u.b. De gemarkeerde velden in!","Palun täida värvilised väljad!","Täytä kentät, jotka on merkitty värillä!","Пожалуйста, заполните поля обозначенные цветом!"]
[null,null,""," "]
[null,null,""," "]
[null,null,"Sterowanie"," ","Ovládání","Operated","Bedienung","Sterowanie","Porte","Bediening","Avamine","Ohjattu","Тип управления"]
[null,null,"Ręcznie wykonany"," ","Ručně","Manually","Hand","Ręcznie wykonany","Manuelle","Hand","Käsitsi","Manuaalisesti","Вручную"]
[null,null,"Elektrycznie"," ","Elektricky","Electrical ","Elektrisch","Elektrycznie","Motorisee","Elektrisch","Elektriliselt","Sähköisesti","Электрическое управление или с помощью цепи"]
[null,null,"Łańcuch napędu"," ","Řetězovým převodem","Hauling chain operated","Haspeklettenbedient","Łańcuch napędu","Treuil a chaine","Handketting","Taliga","Ketjukäyttöinen","цепной привод"]
[null,null,""," "]
[null,null,""," "]
[null,null,"Pozycja sylnika"," ","Umístění motoru","Position of motor","Antriebesposition","Pozycja sylnika","La position moteur","Positie van de motor","Mootori asukohta","Mootorin asema","Расположение мотора"]
[null,null,"Po lewej stronie"," ","Na levé straně","On the left side","Auf der linken Seiten","Po lewej stronie","Sur le cote gauche","Aan de linkerzijde","Vasakul küljel","Vasemallla","С левой стороны"]
[null,null,"Po prawej strony"," ","Na pravé straně","On the right side","Auf der rechten Seiten","Po prawej strony","Sur le cote droit","Aan de rechterzijde","Paremal küljel","Oikealla","С правой стороны"]
[null,null,""," "]
[null,null,"Wariant montażu sprężyn"," ","Variantní  montáž pružin","Additional spring mounting","Extra aufhängung federpaket","Wariant montażu sprężyn","Montage des ressorts","Extra veer monteren","Täiendav vedrukinnitus","Lisäjousikiinnitys","Дополнительное пружинное крепление"]
[null,null,"Jeżeli w< 2000-stp-1 sprężyna (spr-1)"," ","Když b<2000 - stp-1 pružina (spr-1)","If w< 2000 - insd-1 spring (spr-1)","Wenn w< 2000 - baus-1 feder (spr-1)","Jeżeli w< 2000-stp-1 sprężyna (spr-1)","Si w< 2000 stp-1ressort (spr-1)","Als b<2000 - insd-1 veer (spr-1)","Kui w < 2000 – insd-1 vedru (spr-1)","Jos w < 2000 - insd-1 jousi (spr-1)","Если w <2000 - пружина инсд-1 (спр-1)"]
[null,null,"Jeżeli 2000>=w<6000-stp-2 sprężyna (spr-2)"," ","Když 2000>=w<6000 - stp-2 pružiny (spr-2)","If 2000>=w<6000 - insd-2 springs (spr-2)","Wenn 2000>=w<6000- baus-2 federn (spr-2)","Jeżeli 2000>=w<6000-stp-2 sprężyna (spr-2)","Si 2000>=w<6000 stp-2ressorts (spr-2)","Als 2000>=b<6000 - insd-2 veren (spr-2)","Kui 2000>=w<6000 - insd-2 vedrud (spr-2)","Jos 2000>=w<6000 - insd-2 jouset (spr-2)","Если 2000> = w <6000 - пружины инсд-2 (спр-2)"]
[null,null,"Jeżeli w>=6000-stp-4 sprężyna (spr-4)"," ","Když w>=6000 = stp-4 pružiny (spr-4)","If w>=6000 - insd-4 springs (spr-4)","Wenn w>=6000 - baus-4 federn (spr-4)","Jeżeli w>=6000-stp-4 sprężyna (spr-4)","Si w> 6000 stp-4ressorts (spr-4)","Als b>=6000 - insd-4 veren (spr-4)","Kui w>=6000 - insd-4 vedrud (spr-4)","Jos w>=6000 - insd-4 jouset (spr-4)","Если w> = 6000 - пружины инсд-4 (спр-4)"]
[null,null,""," "]
[null,null,"Rodzaj panelu"," ","Typ panelu","Type of panel","Paneel-typ","Rodzaj panelu","Type de panneau","Panel type","Paneelitüüp","Lamellin tyypi","Тип панели"]
[null,null,"40mm"," ","40mm","40mm","40mm","40mm","40mm","40mm","40mm","40 mm","40mm","40мм"]
[null,null,"80mm"," ","80mm","80mm","80mm","80mm","80mm","80mm","80mm","80 mm","80mm","80мм"]
[null,null,""]
[null,null,""]
[null,null,"Typ moznazowych",null,"Typ vedení","Type of rails","Laufschienen-Typ","Typ moznazowych","Type des rails","Type looprails","Siinide tüüp","Kiskojen tyyppi","Тип направляющих"]
[null,null,"2\"",null,"2\"","2\"","2\"","2\"","2\"","2\"","2\"","2\"","2\"","2\""]
[null,null,"3\"",null,"3\"","3\"","3\"","3\"","3\"","3\"","3\"","3\"","3\"","3\""]
[null,null,""]
[null,null,{"$f":"IF(E133=\"\",\"\",VLOOKUP(E133,E133:U133,$C$2,FALSE))","v":"Darmowa głębokość przestrzeni"},null,"Hloubka volného prostoru","Free space depth (back room)","freie Raumtiefe.","Darmowa głębokość przestrzeni","Profondeur d'espace libre","Vrije ruimte diepte","Vaba ruumi sügavus","Vapaa tilan syvyys","Глубина свободного места"]
[null,null,"Górna krawędź niezbędnego obszaru montażu",null,"Horní hrana nezbytné montážní plochy","The upper edge of the necessary mounting area","Der obere Rand des notwendigen Montagebereichs","Górna krawędź niezbędnego obszaru montażu","Le bord supérieur de la zone de montage nécessaire","De bovenrand van het benodigde bevestigingsgebied","Vajaliku paigaldusala ülemine serv","Tarvittavan asennusalueen yläreuna","Верхний край нужной области монтажа"]
[null,null,"Oś wału na podłodze",null,"Osa hřídele nad podlahou","Shaft Axis over Floor","Wellenachse über dem Boden","Oś wału na podłodze","Axe d'arbre sur le sol","Schachtas over de vloer","Võlli telje põranda üle","Akseli akseli lattialle","Ось вала на полу"]
[null,null,"Strona lokalizacji silnika.",null,"Strana pro umístění motoru","Engine location page","Seite der Motorstandort","Strona lokalizacji silnika.","Page de localisation du moteur","Motorlocatiepagina","Mootori asukoha leht","Moottorin sijainti sivu","Расположение двигателя Страница"]
[null,null,""]
[null,null,"Prowadzenie dla wysokiego nadproża (HL)",null,"Vedení pro vysoký překlad (HL)","High lift system (HL)"," Höhergeführter Beschlag (HL)","Prowadzenie dla wysokiego nadproża (HL)","Levee haute (HL)","Hoog beslagsysteem (HL)","Kõrge tõste (HL)","Korkeanosto (HL)","Высокий подъем (HL)"]
[null,null,"Prowadzenie pionowe (VL)",null,"Vertikální vedení (VL)","Vertical lift system (VL)","Vertikaler Beschlag (VL)","Prowadzenie pionowe (VL)","Levee verticale (VL)","Verticaal plafond systeem (VL)","Vertikaaltõste (VL)","Suoranosto (VL)","Вертикальный подъем (VL)"]
[null,null,{"$f":"IF(E140=\"\",\"\",VLOOKUP(E140,E140:U140,$C$2,FALSE))","v":"Oferta/Zamówienie:"},null,"Nabídka/Objednávka:","Offer/Order:","Angebot/Bestellung:","Oferta/Zamówienie:","Offre/Commande:","Offerte/Order:","Pakkumine/tellimus:","Tarjous/Tilaus:","Предложение/заказ:"]
[null,null,{"$f":"IF(E141=\"\",\"\",VLOOKUP(E141,E141:U141,$C$2,FALSE))","v":"Pozycje:"},null,"Pozice:","Position:","Position:","Pozycje:","Positions:","Positie:","Ametikohad:","Työpaikat:","Позиции:"]
[null,null,{"$f":"IF(E142=\"\",\"\",VLOOKUP(E142,E142:U142,$C$2,FALSE))","v":"Gniazdo przemysłowe CEE 16A, 5P, 400V, zabezpieczone wyłącznikiem nadprądowym 16A o charakterystyce typu K, wyłącznik różnicowoprądowy typu F, I = 30 mA."},null,"Průmyslová zásuvka CEE 16A, 5P, 400V, jištěno 16A jističem s charakteristikou typu K, proudový chránič typu F, I=30 mA  ","Industrial socket CEE 16A, 5P, 400V, protected by a 16A circuit breaker with K-type characteristics, residual current device type F, I = 30 mA.","Industriesteckdose CEE 16A, 5P, 400V, abgesichert mit einem 16A-Leitungsschutzschalter mit K-Charakteristik, FI-Schutzschalter Typ F, I = 30 mA.","Gniazdo przemysłowe CEE 16A, 5P, 400V, zabezpieczone wyłącznikiem nadprądowym 16A o charakterystyce typu K, wyłącznik różnicowoprądowy typu F, I = 30 mA.","Prise industrielle CEE 16A, 5P, 400V, protégée par un disjoncteur 16A avec caractéristique de type K, dispositif différentiel type F, I = 30 mA."," Industriële stekker CEE 16A, 5P, 400V, beveiligd met een 16A zekering met K-type karakteristieken, aardlekschakelaar type F, I = 30 mA."," Tööstuslik pistikupesa CEE 16A, 5P, 400V, kaitstud 16A K-tüüpi kaitselülitiga, lekkekaitselüliti tüüp F, I = 30 mA.","Teollisuuspistorasia CEE 16A, 5P, 400V, suojattu 16A K-tyypin katkaisijalla, vikavirtasuoja tyyppi F, I = 30 mA.","Промышленная розетка CEE 16A, 5P, 400В, защищена автоматическим выключателем на 16А с характеристикой типа K, УЗО типа F, I = 30 мА.","Industriuttag CEE 16A, 5P, 400V, skyddad av en 16A-säkring med K-typ egenskaper, jordfelsbrytare typ F, I = 30 mA."]
[null,null,{"$f":"IF(F143=\"\",\"\",VLOOKUP(F143,F143:V143,$C$2,FALSE))","v":""}]
[null,null,""]
[null,null,""]
[null,null,""]
[null,null,""]
[null,null,""]
[null,null,""]
[null,null,""]
[null,null,""]
[null,null,""]
[null,null,""]
[null,null,""]
[null,null,""]
[null,null,""]
[null,null,""]
[null,null,""]
[null,null,""]
[null,null,""]
[null,null,""]
[null,null,""]
[null,null,""]
[null,null,""]
[null,null,""]
[null,null,""]
[null,null,""]
[null,null,""]
[null,null,""]
[null,null,""]
[null,null,""]
[null,null,""]
[null,null,""]
[null,null,""]
[null,null,""]
[null,null,""]
[null,null,""]
[null,null,""]
[null,null,""]
[null,null,""]
[null,null,""]
[null,null,""]
[null,null,""]
[null,null,""]
[null,null,""]
[null,null,""]
[null,null,""]
[null,null,""]
[null,null,""]
[null,null,""]
[null,null,""]
[null,null,""]
[null,null,""]
[null,null,""]
[null,null,""]
[null,null,""]
[null,null,""]
[null,null,""]
[null,null,""]
[null,null,""]
[null,null,""]
[null,null,""]
[null,null,""]
[null,null,""]
[null,null,""]
[null,null,""]
[null,null,{"$f":"IF(F207=\"\",\"\",VLOOKUP(F207,F207:V207,$C$2,FALSE))","v":""}]
[null,null,""]
[null,null,""]
[null,null,""]
[null,null,""]
[null,null,""]
[null,null,""]
[null,null,""]
[null,null,""]
[null,null,""]
[null,null,""]
[null,null,""]
[null,null,""]
[null,null,""]
[null,null,""]
[null,null,""]
[null,null,""]
[null,null,""]
[null,null,""]
[null,null,""]
[null,null,""]
[null,null,""]
[null,null,""]
[null,null,""]
[null,null,""]
[null,null,""]
[null,null,""]
[null,null,""]
[null,null,""]
[null,null,""]
[null,null,""]
[null,null,""]
[null,null,""]
[null,null,""]
[null,null,""]
[null,null,""]
[null,null,""]
[null,null,""]
[null,null,""]
[null,null,""]
[null,null,""]
[null,null,""]
[null,null,""]
[null,null,""]
[null,null,""]
[null,null,""]
[null,null,""]
[null,null,""]
[null,null,""]
[null,null,""]
[null,null,""]
[null,null,""]
[null,null,""]
[null,null,""]
[null,null,""]
[null,null,""]
[null,null,""]
[null,null,""]
[null,null,""]
[null,null,""]
[null,null,""]
[null,null,""]
[null,null,""]
[null,null,""]
[null,null,{"$f":"IF(F271=\"\",\"\",VLOOKUP(F271,F271:V271,$C$2,FALSE))","v":""}]
[null,null,""]
[null,null,""]
[null,null,""]
[null,null,""]
[null,null,""]
[null,null,""]
[null,null,""]
[null,null,""]
[null,null,""]
[null,null,""]
[null,null,""]
[null,null,""]
[null,null,""]
[null,null,""]
[null,null,""]
[null,null,""]
[null,null,""]
[null,null,""]
[null,null,""]
[null,null,""]
[null,null,""]
[null,null,""]
[null,null,""]
[null,null,""]
[null,null,""]
[null,null,""]
[null,null,""]
[null,null,""]
[null,null,""]
[null,null,""]
[null,null,""]
[null,null,""]
[null,null,""]
[null,null,""]
[null,null,""]
[null,null,""]
[null,null,""]
[null,null,""]
[null,null,""]
[null,null,""]
[null,null,""]
[null,null,""]
[null,null,""]
[null,null,""]
[null,null,""]
[null,null,""]
[null,null,""]
[null,null,""]
[null,null,""]
[null,null,""]
[null,null,""]
[null,null,""]
[null,null,""]
[null,null,""]
[null,null,""]
[null,null,""]
[null,null,""]
[null,null,""]
[null,null,""]
[null,null,""]
[null,null,""]
[null,null,""]
[null,null,""]
[null,null,{"$f":"IF(F335=\"\",\"\",VLOOKUP(F335,F335:V335,$C$2,FALSE))","v":""}]
[null,null,""]
[null,null,""]
[null,null,""]
[null,null,""]
[null,null,""]
[null,null,""]
[null,null,""]
[null,null,""]
[null,null,""]
[null,null,""]
[null,null,""]
[null,null,""]
[null,null,""]
[null,null,""]
[null,null,""]
[null,null,""]
[null,null,""]
[null,null,""]
[null,null,""]
[null,null,""]
[null,null,""]
[null,null,""]
[null,null,""]
[null,null,""]
[null,null,""]
[null,null,""]
[null,null,""]
[null,null,""]
[null,null,""]
[null,null,""]
[null,null,""]
[null,null,""]
[null,null,""]
[null,null,""]
[null,null,""]
[null,null,""]
[null,null,""]
[null,null,""]
[null,null,""]
[null,null,""]
[null,null,""]
[null,null,""]
[null,null,""]
[null,null,""]
[null,null,""]
[null,null,""]
[null,null,""]
[null,null,""]
[null,null,""]
[null,null,""]
[null,null,""]
[null,null,""]
[null,null,""]
[null,null,""]
[null,null,""]
[null,null,""]
[null,null,""]
[null,null,""]
[null,null,""]
[null,null,""]
[null,null,""]
[null,null,""]
[null,null,""]
[null,null,{"$f":"IF(F399=\"\",\"\",VLOOKUP(F399,F399:V399,$C$2,FALSE))","v":""}]
[null,null,""]
[null,null,""]
[null,null,""]
[null,null,""]
[null,null,""]
[null,null,""]
[null,null,""]
[null,null,""]
[null,null,""]
[null,null,""]
[null,null,""]
[null,null,""]
[null,null,""]
[null,null,""]
[null,null,""]
[null,null,""]
[null,null,""]
[null,null,""]
[null,null,""]
[null,null,""]
[null,null,""]
[null,null,""]
[null,null,""]
[null,null,""]
[null,null,""]
[null,null,""]
[null,null,""]
[null,null,""]
[null,null,""]
[null,null,""]
[null,null,""]
[null,null,""]
[null,null,""]
[null,null,""]
[null,null,""]
[null,null,""]
[null,null,""]
[null,null,""]
[null,null,""]
[null,null,""]
[null,null,""]
[null,null,""]
[null,null,""]
[null,null,""]
[null,null,""]
[null,null,""]
[null,null,""]
[null,null,""]
[null,null,""]
[null,null,""]
[null,null,""]
[null,null,""]
[null,null,""]
[null,null,""]
[null,null,""]
[null,null,""]
[null,null,""]
[null,null,""]
[null,null,""]
[null,null,""]
[null,null,""]
[null,null,""]
[null,null,""]
[null,null,{"$f":"IF(F463=\"\",\"\",VLOOKUP(F463,F463:V463,$C$2,FALSE))","v":""}]
[null,null,""]
[null,null,""]
[null,null,""]
[null,null,""]
[null,null,""]
[null,null,""]
[null,null,""]
[null,null,""]
[null,null,""]
[null,null,""]
[null,null,""]
[null,null,""]
[null,null,""]
[null,null,""]
[null,null,""]
[null,null,""]
[null,null,""]
[null,null,""]
[null,null,""]
[null,null,""]
[null,null,""]
[null,null,""]
[null,null,""]
[null,null,""]
[null,null,""]
[null,null,""]
[null,null,""]
[null,null,""]
[null,null,""]
[null,null,""]
[null,null,""]
[null,null,""]
[null,null,""]
[null,null,""]
[null,null,""]
[null,null,""]
[null,null,""]
[null,null,""]
[null,null,""]
[null,null,""]
[null,null,""]
[null,null,""]
[null,null,""]
[null,null,""]
[null,null,""]
[null,null,""]
[null,null,""]
[null,null,""]
[null,null,""]
[null,null,""]
[null,null,""]
[null,null,""]
[null,null,""]
[null,null,""]
[null,null,""]
[null,null,""]
[null,null,""]
[null,null,""]
[null,null,""]
[null,null,""]
[null,null,""]
[null,null,""]
[null,null,""]
[null,null,{"$f":"IF(F527=\"\",\"\",VLOOKUP(F527,F527:V527,$C$2,FALSE))","v":""}]
[null,null,""]
[null,null,""]
[null,null,""]
[null,null,""]
[null,null,""]
[null,null,""]
[null,null,""]
[null,null,""]
[null,null,""]
[null,null,""]
[null,null,""]
[null,null,""]
[null,null,""]
[null,null,""]
[null,null,""]
[null,null,""]
[null,null,""]
[null,null,""]
[null,null,""]
[null,null,""]
[null,null,""]
[null,null,""]
[null,null,""]
[null,null,""]
[null,null,""]
[null,null,""]
[null,null,""]
[null,null,""]
[null,null,""]
[null,null,""]
[null,null,""]
[null,null,""]
[null,null,""]
[null,null,""]
[null,null,""]
[null,null,""]
[null,null,""]
[null,null,""]
[null,null,""]
[null,null,""]
[null,null,""]
[null,null,""]
[null,null,""]
[null,null,""]
[null,null,""]
[null,null,""]
[null,null,""]
[null,null,""]
[null,null,""]
[null,null,""]
[null,null,""]
[null,null,""]
[null,null,""]
[null,null,""]
[null,null,""]
[null,null,""]
[null,null,""]
[null,null,""]
[null,null,""]
[null,null,""]
[null,null,""]
[null,null,""]
[null,null,""]
[null,null,{"$f":"IF(F591=\"\",\"\",VLOOKUP(F591,F591:V591,$C$2,FALSE))","v":""}]
[null,null,""]
[null,null,""]
[null,null,""]
[null,null,""]
[null,null,""]
[null,null,""]
[null,null,""]
[null,null,""]
[null,null,""]
[null,null,""]
[null,null,""]
[null,null,""]
[null,null,""]
[null,null,""]
[null,null,""]
[null,null,""]
[null,null,""]
[null,null,""]
[null,null,""]
[null,null,""]
[null,null,""]
[null,null,""]
[null,null,""]
[null,null,""]
[null,null,""]
[null,null,""]
[null,null,""]
[null,null,""]
[null,null,""]
[null,null,""]
[null,null,""]
[null,null,""]
[null,null,""]
[null,null,""]
[null,null,""]
[null,null,""]
[null,null,""]
[null,null,""]
[null,null,""]
[null,null,""]
[null,null,""]
[null,null,""]
[null,null,""]
[null,null,""]
[null,null,""]
[null,null,""]
[null,null,""]
[null,null,""]
[null,null,""]
[null,null,""]
[null,null,""]
[null,null,""]
[null,null,""]
[null,null,""]
[null,null,""]
[null,null,""]
[null,null,""]
[null,null,""]
[null,null,""]
[null,null,""]
[null,null,""]
[null,null,""]
[null,null,""]
[null,null,{"$f":"IF(F655=\"\",\"\",VLOOKUP(F655,F655:V655,$C$2,FALSE))","v":""}]
[null,null,""]
[null,null,""]
[null,null,""]
[null,null,""]
[null,null,""]
[null,null,""]
[null,null,""]
[null,null,""]
[null,null,""]
[null,null,""]
[null,null,""]
[null,null,""]
[null,null,""]
[null,null,""]
[null,null,""]
[null,null,""]
[null,null,""]
[null,null,""]
[null,null,""]
[null,null,""]
[null,null,""]
[null,null,""]
[null,null,""]
[null,null,""]
[null,null,""]
[null,null,""]
[null,null,""]
[null,null,""]
[null,null,""]
[null,null,""]
[null,null,""]
[null,null,""]
[null,null,""]
[null,null,""]
[null,null,""]
[null,null,""]
[null,null,""]
[null,null,""]
[null,null,""]
[null,null,""]
[null,null,""]
[null,null,""]
[null,null,""]
[null,null,""]
[null,null,""]
[null,null,""]
[null,null,""]
[null,null,""]
[null,null,""]
[null,null,""]
[null,null,""]
[null,null,""]
[null,null,""]
[null,null,""]
[null,null,""]
[null,null,""]
[null,null,""]
[null,null,""]
[null,null,""]
[null,null,""]
[null,null,""]
[null,null,""]
[null,null,""]
[null,null,{"$f":"IF(F719=\"\",\"\",VLOOKUP(F719,F719:V719,$C$2,FALSE))","v":""}]
[null,null,""]
[null,null,""]
[null,null,""]
[null,null,""]
[null,null,""]
[null,null,""]
[null,null,""]
[null,null,""]
[null,null,""]
[null,null,""]
[null,null,""]
[null,null,""]
[null,null,""]
[null,null,""]
[null,null,""]
[null,null,""]
[null,null,""]
[null,null,""]
[null,null,""]
[null,null,""]
[null,null,""]
[null,null,""]
[null,null,""]
[null,null,""]
[null,null,""]
[null,null,""]
[null,null,""]
[null,null,""]
[null,null,""]
[null,null,""]
[null,null,""]
[null,null,""]
[null,null,""]
[null,null,""]
[null,null,""]
[null,null,""]
[null,null,""]
[null,null,""]
[null,null,""]
[null,null,""]
[null,null,""]
[null,null,""]
[null,null,""]
[null,null,""]
[null,null,""]
[null,null,""]
[null,null,""]
[null,null,""]
[null,null,""]
[null,null,""]
[null,null,""]
[null,null,""]
[null,null,""]
[null,null,""]
[null,null,""]
[null,null,""]
[null,null,""]
[null,null,""]
[null,null,""]
[null,null,""]
[null,null,""]
[null,null,""]
[null,null,""]
[null,null,{"$f":"IF(F783=\"\",\"\",VLOOKUP(F783,F783:V783,$C$2,FALSE))","v":""}]
[null,null,""]
[null,null,""]
[null,null,""]
[null,null,""]
[null,null,""]
[null,null,""]
[null,null,""]
[null,null,""]
[null,null,""]
[null,null,""]
[null,null,""]
[null,null,""]
[null,null,""]
[null,null,""]
[null,null,""]
[null,null,""]
[null,null,""]
[null,null,""]
[null,null,""]
[null,null,""]
[null,null,""]
[null,null,""]
[null,null,""]
[null,null,""]
[null,null,""]
[null,null,""]
[null,null,""]
[null,null,""]
[null,null,""]
[null,null,""]
[null,null,""]
[null,null,""]
[null,null,""]
[null,null,""]
[null,null,""]
[null,null,""]
[null,null,""]
[null,null,""]
[null,null,""]
[null,null,""]
[null,null,""]
[null,null,""]
[null,null,""]
[null,null,""]
[null,null,""]
[null,null,""]
[null,null,""]
[null,null,""]
[null,null,""]
[null,null,""]
[null,null,""]
[null,null,""]
[null,null,""]
[null,null,""]
[null,null,""]
[null,null,""]
[null,null,""]
[null,null,""]
[null,null,""]
[null,null,""]
[null,null,""]
[null,null,""]
[null,null,""]
[null,null,{"$f":"IF(F847=\"\",\"\",VLOOKUP(F847,F847:V847,$C$2,FALSE))","v":""}]
[null,null,""]
[null,null,""]
[null,null,""]
[null,null,""]
[null,null,""]
[null,null,""]
[null,null,""]
[null,null,""]
[null,null,""]
[null,null,""]
[null,null,""]
[null,null,""]
[null,null,""]
[null,null,""]
[null,null,""]
[null,null,""]
[null,null,""]
[null,null,""]
[null,null,""]
[null,null,""]
[null,null,""]
[null,null,""]
[null,null,""]
[null,null,""]
[null,null,""]
[null,null,""]
[null,null,""]
[null,null,""]
[null,null,""]
[null,null,""]
[null,null,""]
[null,null,""]
[null,null,""]
[null,null,""]
[null,null,""]
[null,null,""]
[null,null,""]
[null,null,""]
[null,null,""]
[null,null,""]
[null,null,""]
[null,null,""]
[null,null,""]
[null,null,""]
[null,null,""]
[null,null,""]
[null,null,""]
[null,null,""]
[null,null,""]
[null,null,""]
[null,null,""]
[null,null,""]
[null,null,""]
[null,null,""]
[null,null,""]
[null,null,""]
[null,null,""]
[null,null,""]
[null,null,""]
[null,null,""]
[null,null,""]
[null,null,""]
[null,null,""]
[null,null,{"$f":"IF(F911=\"\",\"\",VLOOKUP(F911,F911:V911,$C$2,FALSE))","v":""}]
[null,null,""]
[null,null,""]
[null,null,""]
[null,null,""]
[null,null,""]
[null,null,""]
[null,null,""]
[null,null,""]
[null,null,""]
[null,null,""]
[null,null,""]
[null,null,""]
[null,null,""]
[null,null,""]
[null,null,""]
[null,null,""]
[null,null,""]
[null,null,""]
[null,null,""]
[null,null,""]
[null,null,""]
[null,null,""]
[null,null,""]
[null,null,""]
[null,null,""]
[null,null,""]
[null,null,""]
[null,null,""]
[null,null,""]
[null,null,""]
[null,null,""]
[null,null,""]
[null,null,""]
[null,null,""]
[null,null,""]
[null,null,""]
[null,null,""]
[null,null,""]
[null,null,""]
[null,null,""]
[null,null,""]
[null,null,""]
[null,null,""]
[null,null,""]
[null,null,""]
[null,null,""]
[null,null,""]
[null,null,""]
[null,null,""]
[null,null,""]
[null,null,""]
[null,null,""]
[null,null,""]
[null,null,""]
[null,null,""]
[null,null,""]
[null,null,""]
[null,null,""]
[null,null,""]
[null,null,""]
[null,null,""]
[null,null,""]
[null,null,""]
[null,null,{"$f":"IF(F975=\"\",\"\",VLOOKUP(F975,F975:V975,$C$2,FALSE))","v":""}]
[null,null,""]
[null,null,""]
[null,null,""]
[null,null,""]
[null,null,""]
[null,null,""]
[null,null,""]
[null,null,""]
[null,null,""]
[null,null,""]
[null,null,""]
[null,null,""]
[null,null,""]
[null,null,""]
[null,null,""]
[null,null,""]
[null,null,""]
[null,null,""]
[null,null,""]
[null,null,""]
[null,null,""]
[null,null,""]
[null,null,""]
[null,null,""]
[null,null,""]
[null,null,""]
[null,null,""]
[null,null,""]
[null,null,""]
[null,null,""]
[null,null,""]
[null,null,""]
[null,null,""]
[null,null,""]
[null,null,""]
[null,null,""]
[null,null,""]
[null,null,""]
[null,null,""]
[null,null,""]
[null,null,""]
[null,null,""]
[null,null,""]
[null,null,""]
[null,null,""]
[null,null,""]
[null,null,""]
[null,null,""]
[null,null,""]
[null,null,""]
[null,null,""]
[null,null,""]
[null,null,""]
[null,null,""]
[null,null,""]
[null,null,""]
[null,null,""]
[null,null,""]
[null,null,""]
[null,null,""]
[null,null,""]
[null,null,""]
[null,null,""]
[null,null,{"$f":"IF(F1039=\"\",\"\",VLOOKUP(F1039,F1039:V1039,$C$2,FALSE))","v":""}]
[null,null,""]
[null,null,""]
[null,null,""]
[null,null,""]
[null,null,""]
[null,null,""]
[null,null,""]
[null,null,""]
[null,null,""]
[null,null,""]
[null,null,""]
[null,null,""]
[null,null,""]
[null,null,""]
[null,null,""]
[null,null,""]
[null,null,""]
[null,null,""]
[null,null,""]
[null,null,""]
[null,null,""]
[null,null,""]
[null,null,""]
[null,null,""]
[null,null,""]
[null,null,""]